[Event "44th Chess Olympiad Open 2022"]
[Site "Chennai"]
[Date "2022.08.09"]
[Round "11.71"]
[White "Boidiya, Sidi"]
[Black "Jones, Rupert"]
[Result "1-0"]
[ECO "B26"]
[WhiteElo "1997"]
[BlackElo "1766"]
[Annotator "TA"]
[PlyCount "75"]
[EventDate "2022.07.29"]
[EventType "team-tourn"]
[EventCountry "IND"]
[SourceTitle "playchess.com"]
[Source "ChessBase"]
[SourceQuality "1"]
[WhiteTeam "MTN"]
[BlackTeam "Papua New Guinea"]
[BlackTeamCountry "PNG"]
[TimeControl "40/5400+30:1800+30"]

{[%evp 12,75,23,16,33,0,8,0,11,13,4,-12,-12,-54,50,67,171,152,151,163,175,106,118,130,127,88,92,95,87,45,87,94,95,94,92,101,108,88,214,216,202,199,185,209,210,176,272,270,244,250,245,242,233,163,242,246,683,679,676,662,620,620,29985,29986,29985,29985]} 1. e4 {[%emt 0:00:01]} c5 {[%emt 0:01:29]} 2. Nc3 {[%emt 0:00:05]} a6 {[%emt 0:00:48]} 3. g3 {[%emt 0:00:13]} Nc6 {[%emt 0:00:09]} 4. Bg2 {[%emt 0:00:05]} g6 {[%emt 0:00:02]} 5. d3 {[%emt 0:00:05]} Bg7 {[%emt 0:00:20]} 6. Be3 {[%emt 0:00:08]} d6 {[%emt 0:00:28]} 7. Qd2 {[%emt 0:00:13]} Nd4 {[%emt 0:01:17] B26: Closed Sicilian: 3 g3, lines with early Be3.} 8. a4 {[%emt 0:00:24]} Nf6 {[%emt 0:01:16]} 9. h3 {[%emt 0:00:04]} O-O {[%emt 0:01:11] The position is equal.} 10. Nge2 {[%emt 0:00:11] [#]} e5 $146 {[%emt 0:05:02]} ({Predecessor:} 10... Nd7 11. Nd1 Nxe2 12. Qxe2 Rb8 13. O-O b5 14. axb5 axb5 15. Rb1 b4 16. b3 Bb7 {0-1 (51) Savins Puertas,M (1975)-Janaszak,D (2362) Chess.com INT 2018}) 11. f4 {[%emt 0:01:31]} Nh5 {[%emt 0:10:41]} 12. f5 {[%emt 0:06:45]} Rb8 {[%emt 0:03:27]} (12... gxf5 $15 13. O-O-O {[#]} Nxg3 $1 14. Nxg3 f4 15. Bxf4 (15. Bxd4 cxd4 16. Nh5 dxc3 $17) 15... exf4) 13. g4 $14 {[%emt 0:01:16]} Nf4 {[%emt 0:10:58]} (13... Nxe2 $14 14. Nxe2 Nf4 15. Nxf4 exf4 16. Bxf4 Bxb2) 14. Nxf4 $18 {[%emt 0:02:44]} exf4 {[%emt 0:00:07]} 15. Bxf4 {[%emt 0:00:10]} gxf5 {[%emt 0:03:45]} 16. gxf5 {[%emt 0:04:13]} (16. exf5 $18 {Black must now prevent 0-0.} Re8+ 17. Kf2 (17. Ne4 b5 $16)) 16... Qh4+ {[%emt 0:05:10]} 17. Kf1 {[%emt 0:00:20]} Be5 {[%emt 0:07:59]} 18. Bxe5 {[%emt 0:03:51]} dxe5 {[%emt 0:00:02]} 19. Nd5 {[%emt 0:00:33]} Kh8 {[%emt 0:02:59]} 20. Re1 {[%emt 0:05:17] Threatens to win with c3.} b5 {[%emt 0:01:52]} 21. axb5 {[%emt 0:03:28]} axb5 {[%emt 0:00:19]} 22. c3 $36 {[%emt 0:00:07][%mdl 2048] White is really pushing.} Nb3 {[%emt 0:02:51]} 23. Qf2 {[%emt 0:00:27]} Qg5 {[%emt 0:04:53]} 24. h4 {[%emt 0:01:46]} Qg4 {[%emt 0:02:35] This costs Black the game.} (24... Qd8 $16) 25. Bf3 {[%emt 0:00:32]} Nd2+ {[%emt 0:16:16]} 26. Ke2 $1 {[%emt 0:00:18][%cal Bf1e2,Be2f3,Bf3e3][%mdl 32]} Qxf3+ {[%emt 0:02:13]} 27. Qxf3 {[%emt 0:00:05]} Nxf3 {[%emt 0:00:06]} 28. Kxf3 {[%emt 0:00:07]} Bb7 {[%emt 0:00:46]} (28... Rd8 {was worth a try.} 29. Ne3 Bb7) 29. Nf6 {[%emt 0:02:01] [#] Nd7 is the strong threat.} Rbd8 {[%emt 0:00:07] Inhibits Nd7.} 30. Ke3 {[%emt 0:00:34]} Rd6 {[%emt 0:03:31]} 31. Ng4 {[%emt 0:00:11]} f6 {[%emt 0:00:36]} 32. Rd1 {[%emt 0:00:50]} Rfd8 {[%emt 0:02:33]} (32... Bc6 {is a better defense.} 33. Nf2 Rfd8) 33. Rhg1 {[%emt 0:03:27]} Ba6 $2 {[%emt 0:00:45]} (33... h5) 34. Nh6 {[%emt 0:00:30][%cal Rh6f7]} R6d7 {[%emt 0:00:24] Prevents Nf7+.} 35. d4 {[%emt 0:00:18][%cal Od4e5] White wants to mate with dxe5!} cxd4+ {[%emt 0:04:47]} 36. cxd4 {[%emt 0:00:12][%cal Bc3d4,Bd4e5][%mdl 32]} Rg7 {[%emt 0:00:14]} 37. dxe5 {[%emt 0:00:22]} Rxd1 {[%emt 0:01:40]} 38. Rxd1 {[%emt 0:00:12] Weighted Error Value: White=0.12 (very precise) /Black=0.51} 1-0

[Event "44th Chess Olympiad Open 2022"]
[Site "Chennai"]
[Date "2022.08.09"]
[Round "11.71"]
[White "Hassan Sidi Mohamed Cheikh"]
[Black "Fancy, Stuart"]
[Result "0-1"]
[ECO "D07"]
[WhiteElo "1825"]
[BlackElo "1984"]
[Annotator "TA"]
[PlyCount "92"]
[EventDate "2022.07.29"]
[EventType "team-tourn"]
[EventCountry "IND"]
[SourceTitle "playchess.com"]
[Source "ChessBase"]
[SourceQuality "1"]
[WhiteTeam "MTN"]
[BlackTeam "Papua New Guinea"]
[BlackTeamCountry "PNG"]
[TimeControl "40/5400+30:1800+30"]

{[%evp 9,92,-8,37,24,36,28,58,41,102,103,96,100,99,64,53,59,253,52,54,0,0,-12,-13,-3,-11,-9,0,-16,-22,-15,18,-48,-44,-146,-126,-149,-79,-86,-14,-9,-27,-28,-79,-77,-80,-247,28,30,23,0,0,0,0,-37,-42,-79,-44,-52,10,-373,-145,-155,-146,-462,-454,-738,-735,-724,-685,-906,-806,-1057,-894,-1128,-1128,-1435,-1386,-1555,-1506,-29978,-29979,-29979,-29980,-29979,-29980]} 1. d4 {[%emt 0:00:13]} d5 {[%emt 0:00:05]} 2. c4 {[%emt 0:00:13]} Nc6 {[%emt 0:00:03]} 3. e3 {[%emt 0:00:21]} dxc4 {[%emt 0:01:31]} 4. Bxc4 {[%emt 0:00:17]} e5 {[%emt 0:00:15]} 5. d5 {[%emt 0:00:45]} Nce7 {[%emt 0:00:53]} (5... Bb4+ 6. Nc3 Bxc3+ 7. bxc3 $16) (5... Na5 $5 {[%cal Ra5c4]}) 6. Nf3 {[%emt 0:01:32] D07: Queen's Gambit: Chigorin Defence.} Ng6 {[%emt 0:04:25]} 7. h4 {[%emt 0:01:36] [#]} Bb4+ $146 {[%emt 0:06:44]} ({Predecessor:} 7... h5 8. Nc3 Bd6 9. Ng5 Nh6 10. Bb5+ Kf8 11. e4 Bg4 12. f3 Bc8 13. g3 Qe7 {1-0 (41) Savina,A (2350)-Paehtz,E (2453) Monte Carlo 2017}) 8. Nc3 {[%emt 0:01:48] Qa4+ is the strong threat. White is slightly better.} Bxc3+ {[%emt 0:07:22]} (8... Bd6 $1 $14) 9. bxc3 $16 {[%emt 0:00:07] Black must now prevent h5.} e4 {[%emt 0:00:58]} 10. Ng5 {[%emt 0:05:12]} Nf6 {[%emt 0:02:08]} 11. Ba3 {[%emt 0:01:01] aiming for Qd4.} h6 {[%emt 0:01:55]} 12. Nh3 {[%emt 0:24:12]} Nxh4 $2 {[%emt 0:02:42] [#]} (12... c6 $14) 13. Nf4 $2 {[%emt 0:00:07]} ({White has to play} 13. Qd4 $1 $18 {[%cal Rd4e5] And now Qe5+ would win.} Qd7 14. Nf4) 13... Nf5 $1 $14 {[%emt 0:00:11]} 14. Nh5 {[%emt 0:07:30]} (14. Bb5+ $1 $14 Bd7 15. Be2) 14... Nxh5 $1 $11 {[%emt 0:10:18]} 15. Qxh5 {[%emt 0:00:19] Threatens to win with Bb5+.} Qf6 {[%emt 0:02:23]} 16. Rc1 {[%emt 0:05:16]} Bd7 {[%emt 0:02:50]} 17. Bb3 {[%emt 0:15:55]} g6 {[%emt 0:09:23]} 18. Qh2 {[%emt 0:01:12]} O-O-O {[%emt 0:04:14]} 19. c4 {[%emt 0:07:02]} Qg5 {[%emt 0:07:08]} 20. Rc3 {[%emt 0:05:40]} ({White should try} 20. O-O $11) 20... h5 $15 {[%emt 0:04:27]} 21. c5 {[%emt 0:05:14]} (21. Bb2 $15) 21... Bb5 $17 {[%emt 0:04:21] Black is more active.} 22. d6 {[%emt 0:00:37]} c6 {[%emt 0:01:27]} (22... Qg4 23. Bc4 Bxc4 24. Rxc4 $11) (22... Rhe8 $142 23. Bb4 Rd7) 23. Bb4 {[%emt 0:02:47]} Qf6 {[%emt 0:03:39]} (23... Qg4 $6 24. Bd1 Qg5 25. Ra3 $11) (23... Rd7 $17) 24. Rc1 $1 $132 {[%emt 0:05:36][%mdl 2048] Hoping for Bc3. White puts up resistance} Rhe8 {[%emt 0:02:33]} (24... Qb2 25. Rc2 Qa1+ 26. Kd2 $14) 25. Bc3 {[%emt 0:02:02]} Qg5 {[%emt 0:00:09][%cal Of5e3]} 26. Qh3 {[%emt 0:02:00]} (26. a4 $2 Nxe3 27. Qh3+ (27. axb5 $2 Ng4 $19) 27... Ng4 $19) 26... Rd7 {[%emt 0:00:32]} 27. Rg1 $2 {[%emt 0:01:00]} (27. Bd1 $17) 27... Qg4 $2 {[%emt 0:03:37]} (27... b6 $19 28. Bb4 Kb7) 28. Qxg4 {[%emt 0:00:36]} hxg4 {[%emt 0:00:04]} 29. Rh1 {[%emt 0:00:40]} b6 {[%emt 0:01:29]} 30. a4 {[%emt 0:00:33]} Ba6 {[%emt 0:00:55]} 31. cxb6 {[%emt 0:00:38]} (31. Ba1 $5 {[%cal Rh1h7]}) 31... axb6 {[%emt 0:00:24]} 32. Bb4 {[%emt 0:00:39]} Kb7 {[%emt 0:06:26]} 33. Rh7 {[%emt 0:02:12]} g3 {[%emt 0:04:09]} ({Black should play} 33... Bd3 $15) 34. Bxf7 $2 {[%emt 0:01:21][%mdl 8192] [#]} (34. Rxf7 $11 {and White is okay.} Rxf7 35. Bxf7) 34... gxf2+ $2 {[%emt 0:00:22]} (34... Rf8 $1 $19 {[%cal Rf8f7]} 35. Rd1 (35. Bxg6 $2 Rxh7 36. Bxh7 gxf2+ 37. Kxf2 Nd4+ 38. Kg3 Ne2+ 39. Kg4 Nxc1 $19) 35... c5 36. Bxc5 (36. Bd5+ $2 Kc8 $19) 36... bxc5 37. Bd5+ Kc8 38. Rxd7 gxf2+ 39. Kxf2 Nxd6+ 40. Kg3 Kxd7 41. Bxe4 Re8) 35. Kxf2 $17 {[%emt 0:00:31]} Rf8 {[%emt 0:01:05] Chess con chili.} 36. Bxg6 {[%emt 0:00:31][%mdl 8192]} (36. g4 $17 {nothing else works.}) 36... Rxh7 $19 {[%emt 0:00:37]} 37. d7 {[%emt 0:00:50]} (37. Bxh7 $142 Nd4+ 38. Kg3 (38. Ke1 $2 Rf1+ 39. Kd2 Nb3+ 40. Kc2 Nxc1 $19) 38... Ne2+ 39. Kg4 Nxc1 40. Kg5) 37... Nd6+ {[%emt 0:01:56]} 38. Kg1 {[%emt 0:00:49]} Rxd7 {[%emt 0:00:15]} 39. Rd1 {[%emt 0:00:29]} Bd3 {[%emt 0:00:56] Strongly threatening ...c5.} 40. a5 {[%emt 0:00:33]} Rg8 {[%emt 0:00:48]} 41. a6+ {[%emt 0:00:34]} Kxa6 {[%emt 0:00:29]} 42. Bxd6 {[%emt 0:00:16]} Rxg6 {[%emt 0:00:41]} 43. Bf4 {[%emt 0:00:31]} Rdg7 {[%emt 0:00:18]} 44. g3 {[%emt 0:00:26]} Rxg3+ {[%emt 0:00:13] Black mates.} 45. Bxg3 {[%emt 0:00:15]} Rxg3+ {[%emt 0:00:05]} 46. Kf2 {[%emt 0:00:13]} Rf3+ {[%emt 0:00:04] Weighted Error Value: White=0.98/Black=0.39} 0-1

[Event "44th Chess Olympiad Open 2022"]
[Site "Chennai"]
[Date "2022.08.09"]
[Round "11.71"]
[White "McCoy, Tom"]
[Black "Cheikhna, Mohamed Lemine"]
[Result "0-1"]
[ECO "B59"]
[WhiteElo "1812"]
[BlackElo "1899"]
[Annotator "NA RC COMBH"]
[PlyCount "138"]
[EventDate "2022.07.29"]
[EventType "team-tourn"]
[EventCountry "IND"]
[SourceTitle "playchess.com"]
[Source "ChessBase"]
[SourceQuality "1"]
[WhiteTeam "Papua New Guinea"]
[BlackTeam "MTN"]
[WhiteTeamCountry "PNG"]
[TimeControl "40/5400+30:1800+30"]

1. e4 {[%emt 0:00:03]} c5 {[%emt 0:00:08]} 2. Nf3 {[%emt 0:00:08]} Nc6 {[%emt 0:00:11]} 3. d4 {[%emt 0:00:10]} cxd4 {[%emt 0:00:13]} 4. Nxd4 {[%emt 0:00:06]} e5 {[%emt 0:00:11]} 5. Nb3 {[%emt 0:00:34]} d6 {[%emt 0:00:49]} 6. Nc3 {[%emt 0:00:45]} Nf6 {[%emt 0:02:43]} 7. Be2 {[%emt 0:01:04]} Be7 {[%emt 0:00:40]} 8. Be3 {[%emt 0:00:55]} Be6 {[%emt 0:01:04]} 9. f3 {[%emt 0:01:24]} O-O {[%emt 0:00:51]} 10. Qd2 {[%emt 0:00:19]} d5 {[%emt 0:03:50]} 11. exd5 {[%emt 0:00:58]} Nxd5 {[%emt 0:00:10]} 12. Nxd5 {[%emt 0:01:20]} Qxd5 {[%emt 0:00:50]} 13. O-O-O {[%emt 0:06:43]} Nb4 {[%emt 0:09:08]} 14. Qxd5 {[%emt 0:09:28]} Nxd5 {[%emt 0:00:12]} 15. Bc5 {[%emt 0:04:02]} Bg5+ {[%emt 0:01:11]} 16. Kb1 {[%emt 0:02:04]} Rfc8 {[%emt 0:00:35]} 17. Bd3 {[%emt 0:04:34]} Nf4 {[%emt 0:12:27]} 18. Be3 {[%emt 0:09:17]} Nxd3 {[%emt 0:01:20]} 19. Rxd3 {[%emt 0:02:23]} Be7 {[%emt 0:05:31]} 20. g4 {[%emt 0:06:47]} b6 {[%emt 0:02:47]} 21. Rhd1 {[%emt 0:03:19]} Rc7 {[%emt 0:01:22]} 22. c3 {[%emt 0:02:06]} f5 {[%emt 0:04:49]} 23. h3 {[%emt 0:01:00]} h5 {[%emt 0:01:04]} 24. Rg1 {[%emt 0:01:28]} hxg4 {[%emt 0:01:04]} 25. hxg4 {[%emt 0:00:16]} fxg4 {[%emt 0:00:17]} 26. fxg4 {[%emt 0:00:16]} Rc4 {[%emt 0:00:24]} 27. Kc1 {[%emt 0:01:37]} Rxg4 {[%emt 0:00:38]} 28. Rxg4 {[%emt 0:01:14]} Bxg4 {[%emt 0:00:08]} 29. Nd2 {[%emt 0:01:28]} Rd8 {[%emt 0:01:15]} 30. Rxd8+ {[%emt 0:00:18]} Bxd8 {[%emt 0:00:09]} 31. Ne4 {[%emt 0:00:39]} Be7 {[%emt 0:01:02]} 32. Kd2 {[%emt 0:00:41]} Kf7 {[%emt 0:00:24]} 33. a4 {[%emt 0:01:42]} Bf3 {[%emt 0:05:57]} 34. Ng5+ {[%emt 0:01:52]} Bxg5 {[%emt 0:01:43]} 35. Bxg5 {[%emt 0:01:50]} Bc6 {[%emt 0:02:20]} 36. b3 {[%emt 0:03:04]} Kg6 {[%emt 0:00:28]} 37. Be3 {[%emt 0:00:17]} Kf5 {[%emt 0:00:57]} 38. Ke2 {[%emt 0:08:51]} g5 {[%emt 0:08:14]} 39. a5 {[%emt 0:02:27]} bxa5 {[%emt 0:01:26]} 40. Bxa7 {[%emt 0:00:10]} Ke4 {[%emt 0:02:32]} 41. Bb6 {[%emt 0:36:16]} a4 {[%emt 0:28:45]} 42. bxa4 {[%emt 0:02:52]} Bxa4 {[%emt 0:00:22]} 43. Bc7 {[%emt 0:11:06]} Bc6 {[%emt 0:05:23]} 44. Kf2 {[%emt 0:00:00]} Kf4 {[%emt 0:00:00]} 45. Bb6 {[%emt 0:00:00]} Kg4 {[%emt 0:00:00]} 46. Ke3 {[%emt 0:00:00]} Kf5 {[%emt 0:00:00]} 47. Bc5 {[%emt 0:00:00]} g4 {[%emt 0:00:00]} 48. Kf2 {[%emt 0:00:00]} Kf4 {[%emt 0:00:00]} 49. Be3+ {[%emt 0:00:00]} Ke4 {[%emt 0:00:00]} 50. Ba7 {[%emt 0:02:34]} Kd3 {[%emt 0:00:00]} 51. Kg3 {[%emt 0:00:00]} Bf3 {[%emt 0:00:00]} 52. Bb8 {[%emt 0:00:00]} e4 {[%emt 0:00:00]} 53. Kf2 {[%emt 0:00:00]} e3+ {[%emt 0:00:00]} 54. Ke1 {[%emt 0:00:00]} Kxc3 {[%emt 0:00:00]} 55. Bg3 {[%emt 0:00:00]} Kd3 {[%emt 0:00:00]} 56. Bf4 {[%emt 0:00:00]} Ke4 {[%emt 0:00:00]} 57. Bg3 {[%emt 0:00:11]} Kf5 {[%emt 0:00:00]} 58. Kf1 {[%emt 0:01:09]} Bc6 {[%emt 0:00:00]} 59. Ke2 {[%emt 0:00:26]} Ke4 {[%emt 0:00:00]} 60. Bh2 {[%emt 0:01:57]} Bb5+ {[%emt 0:00:00]} 61. Ke1 {[%emt 0:00:32]} Kf3 {[%emt 0:00:00]} 62. Bg1 {[%emt 0:01:17]} Bc4 {[%emt 0:00:00]} 63. Bh2 {[%emt 0:02:34]} Kg2 {[%emt 0:00:00]} 64. Bf4 {[%emt 0:00:08]} Kf3 {[%emt 0:00:10]} 65. Bh2 {[%emt 0:00:05]} g3 {[%emt 0:10:50]} 66. Bg1 {[%emt 0:00:01]} Ke4 {[%emt 0:00:53]} 67. Kd1 {[%emt 0:00:01]} Kd3 {[%emt 0:00:43]} 68. Ke1 {[%emt 0:00:07]} Bb3 {[%emt 0:00:49]} 69. Kf1 {[%emt 0:00:23]} Kd2 {[%emt 0:00:13]} 0-1

[Event "44th Chess Olympiad Open 2022"]
[Site "Chennai"]
[Date "2022.08.09"]
[Round "11.72"]
[White "Al Thebaiti Ahmed M"]
[Black "Martyr, Reginald"]
[Result "0-1"]
[ECO "D00"]
[WhiteElo "1966"]
[BlackElo "2194"]
[Annotator "RC"]
[PlyCount "166"]
[EventDate "2022.07.29"]
[EventType "team-tourn"]
[EventCountry "IND"]
[SourceTitle "playchess.com"]
[Source "ChessBase"]
[SourceQuality "1"]
[WhiteTeam "KSA"]
[BlackTeam "LCA"]
[TimeControl "40/5400+30:1800+30"]

1. d4 {[%emt 0:00:05]} d5 {[%emt 0:00:29]} 2. Bf4 {[%emt 0:00:16]} Nf6 {[%emt 0:00:20]} 3. e3 {[%emt 0:00:13]} c5 {[%emt 0:00:19]} 4. c3 {[%emt 0:00:55]} Qb6 {[%emt 0:02:39]} 5. Qb3 {[%emt 0:00:10]} c4 {[%emt 0:00:19]} 6. Qc2 {[%emt 0:00:16]} g6 {[%emt 0:00:11]} 7. Nd2 {[%emt 0:02:05]} Bf5 {[%emt 0:04:34]} 8. Qc1 {[%emt 0:00:52]} Bg7 {[%emt 0:04:03]} 9. h3 {[%emt 0:00:44]} h5 {[%emt 0:00:17]} 10. b3 {[%emt 0:01:33]} cxb3 {[%emt 0:00:04]} 11. axb3 {[%emt 0:00:03]} O-O {[%emt 0:00:19]} 12. Ngf3 {[%emt 0:00:18]} Nc6 {[%emt 0:05:33]} 13. Be2 {[%emt 0:03:06]} Rfc8 {[%emt 0:01:44]} 14. Qb2 {[%emt 0:03:30]} Nd7 {[%emt 0:09:58]} 15. O-O {[%emt 0:02:51]} e5 {[%emt 0:00:33]} 16. Bh2 {[%emt 0:02:39]} Re8 {[%emt 0:24:52]} 17. Rfc1 {[%emt 0:24:06]} exd4 {[%emt 0:04:19]} 18. cxd4 {[%emt 0:00:08]} Nxd4 {[%emt 0:03:00]} 19. exd4 {[%emt 0:06:40]} Rxe2 {[%emt 0:00:18]} 20. Qc3 {[%emt 0:01:14]} Bh6 {[%emt 0:10:19]} 21. Re1 {[%emt 0:09:12]} Rxe1+ {[%emt 0:06:21]} 22. Rxe1 {[%emt 0:00:14]} Nf6 {[%emt 0:01:45]} 23. Be5 {[%emt 0:01:13]} Rc8 {[%emt 0:00:26]} 24. Qa1 {[%emt 0:05:49]} Nd7 {[%emt 0:00:34]} 25. Bg3 {[%emt 0:00:41]} Bf8 {[%emt 0:02:05]} 26. Bf4 {[%emt 0:01:22]} Bb4 {[%emt 0:00:00]} 27. Rc1 {[%emt 0:02:09]} Rxc1+ {[%emt 0:01:44]} 28. Qxc1 {[%emt 0:00:08]} Qc6 {[%emt 0:00:10]} 29. Qe1 {[%emt 0:02:07]} Qc8 {[%emt 0:01:57]} 30. Qe2 {[%emt 0:00:38]} a6 {[%emt 0:00:31]} 31. Bg5 {[%emt 0:00:48]} Bd6 {[%emt 0:01:15]} 32. Nf1 {[%emt 0:03:39]} Nf8 {[%emt 0:01:59]} 33. Ng3 {[%emt 0:05:01]} Qc2 {[%emt 0:01:56]} 34. Qe8 {[%emt 0:01:43]} Qc8 {[%emt 0:05:05]} 35. Qe3 {[%emt 0:02:22]} Bc2 {[%emt 0:01:01]} 36. Bf4 {[%emt 0:03:04]} Bxf4 {[%emt 0:01:49]} 37. Qxf4 {[%emt 0:00:08]} Bxb3 {[%emt 0:00:59]} 38. Qf6 {[%emt 0:08:08]} Qc1+ {[%emt 0:01:34]} 39. Kh2 {[%emt 0:00:16]} Qc6 {[%emt 0:00:11]} 40. Qd8 {[%emt 0:00:31]} Ba4 {[%emt 0:01:44]} 41. Ne5 {[%emt 0:30:49]} Qe6 {[%emt 0:30:00]} 42. Ne2 {[%emt 0:01:12]} Qf5 {[%emt 0:01:53]} 43. Qxd5 {[%emt 0:06:57]} Qxf2 {[%emt 0:00:20]} 44. Ng3 {[%emt 0:00:59]} h4 {[%emt 0:02:07]} 45. Ne4 {[%emt 0:00:40]} Qf4+ {[%emt 0:00:07]} 46. Kg1 {[%emt 0:00:00]} Bc6 {[%emt 0:00:00]} 47. Nxc6 {[%emt 0:00:00]} bxc6 {[%emt 0:00:00]} 48. Qxc6 {[%emt 0:00:00]} Qe3+ {[%emt 0:00:00]} 49. Kh1 {[%emt 0:00:00]} Qxd4 {[%emt 0:00:00]} 50. Nf6+ {[%emt 0:00:00]} Kg7 {[%emt 0:00:00]} 51. Ng4 {[%emt 0:00:00]} f5 {[%emt 0:00:00]} 52. Qb7+ {[%emt 0:00:00]} Nd7 {[%emt 0:00:00]} 53. Ne3 {[%emt 0:00:00]} Kh6 {[%emt 0:00:00]} 54. Nd5 {[%emt 0:00:00]} Nf6 {[%emt 0:00:00]} 55. Ne7 {[%emt 0:00:00]} Qe4 {[%emt 0:00:00]} 56. Qc7 {[%emt 0:00:00]} Qe1+ {[%emt 0:00:00]} 57. Kh2 {[%emt 0:00:08]} Qg3+ {[%emt 0:00:05]} 58. Qxg3 {[%emt 0:00:00]} hxg3+ {[%emt 0:00:00]} 59. Kxg3 {[%emt 0:00:00]} a5 {[%emt 0:00:00]} 60. Nc6 {[%emt 0:00:00]} a4 {[%emt 0:00:00]} 61. Nb4 {[%emt 0:00:00]} a3 {[%emt 0:00:07]} 62. Na2 {[%emt 0:00:00]} Nd5 {[%emt 0:00:17]} 63. Kf3 {[%emt 0:00:00]} Kg5 {[%emt 0:00:07]} 64. g3 {[%emt 0:00:00]} Kf6 {[%emt 0:00:09]} 65. g4 {[%emt 0:00:00]} Ke5 {[%emt 0:00:17]} 66. gxf5 {[%emt 0:00:00]} Kxf5 {[%emt 0:00:06]} 67. Nc1 {[%emt 0:00:28]} Nb4 {[%emt 0:02:35]} 68. Nb3 {[%emt 0:02:37]} a2 {[%emt 0:00:19]} 69. Na1 {[%emt 0:00:31]} Ke5 {[%emt 0:01:29]} 70. Ke3 {[%emt 0:00:37]} Kd5 {[%emt 0:00:00]} 71. h4 {[%emt 0:01:19]} Kc4 {[%emt 0:00:22]} 72. Kd2 {[%emt 0:00:11]} Nc6 {[%emt 0:01:57]} 73. Kc2 {[%emt 0:00:17]} Nd4+ {[%emt 0:00:30]} 74. Kb2 {[%emt 0:00:20]} Nf3 {[%emt 0:00:08]} 75. Kxa2 {[%emt 0:00:42]} Nxh4 {[%emt 0:00:01]} 76. Nb3 {[%emt 0:00:40]} g5 {[%emt 0:00:09]} 77. Nd2+ {[%emt 0:00:11]} Kd3 {[%emt 0:00:11]} 78. Nf1 {[%emt 0:00:11]} g4 {[%emt 0:01:13]} 79. Kb2 {[%emt 0:00:48]} Nf5 {[%emt 0:00:16]} 80. Kc1 {[%emt 0:00:19]} Ke2 {[%emt 0:00:00]} 81. Nd2 {[%emt 0:01:43]} g3 {[%emt 0:00:00]} 82. Ne4 {[%emt 0:00:51]} g2 {[%emt 0:00:00]} 83. Nc3+ {[%emt 0:00:27]} Kd3 {[%emt 0:00:09]} 0-1

[Event "44th Chess Olympiad Open 2022"]
[Site "Chennai"]
[Date "2022.08.09"]
[Round "11.72"]
[White "Alzamil, Abdulaziz"]
[Black "Mathurin, Nathaniel"]
[Result "1-0"]
[ECO "D02"]
[WhiteElo "1871"]
[BlackElo "1722"]
[Annotator "NA RC COMBH"]
[PlyCount "83"]
[EventDate "2022.07.29"]
[EventType "team-tourn"]
[EventCountry "IND"]
[SourceTitle "playchess.com"]
[Source "ChessBase"]
[SourceQuality "1"]
[WhiteTeam "KSA"]
[BlackTeam "LCA"]
[TimeControl "40/5400+30:1800+30"]

1. d4 {[%emt 0:01:45]} Nf6 {[%emt 0:00:08]} 2. Nf3 {[%emt 0:00:03]} d5 {[%emt 0:00:20]} 3. Bf4 {[%emt 0:00:14]} c5 {[%emt 0:00:07]} 4. e3 {[%emt 0:01:27]} Nc6 {[%emt 0:00:08]} 5. c3 {[%emt 0:00:58]} Nh5 {[%emt 0:00:09]} 6. Bg5 {[%emt 0:00:32]} h6 {[%emt 0:02:45]} 7. Bh4 {[%emt 0:04:45]} g5 {[%emt 0:00:12]} 8. Bg3 {[%emt 0:03:41]} Nxg3 {[%emt 0:00:03]} 9. hxg3 {[%emt 0:00:01]} Bg7 {[%emt 0:00:12]} 10. Qc2 {[%emt 0:01:45]} Qb6 {[%emt 0:01:21]} 11. Nbd2 {[%emt 0:01:15]} cxd4 {[%emt 0:00:25]} 12. exd4 {[%emt 0:00:41]} Bg4 {[%emt 0:00:41]} 13. Be2 {[%emt 0:02:24]} Rd8 {[%emt 0:00:43]} 14. Nf1 {[%emt 0:04:55]} e5 {[%emt 0:08:31]} 15. Ne3 {[%emt 0:02:44]} Be6 {[%emt 0:01:37]} 16. dxe5 {[%emt 0:03:37]} g4 {[%emt 0:05:22]} 17. Nh4 {[%emt 0:01:43]} Bxe5 {[%emt 0:00:09]} 18. Nxg4 {[%emt 0:07:15]} Bxg4 {[%emt 0:03:08]} 19. Bxg4 {[%emt 0:02:54]} d4 {[%emt 0:00:01]} 20. O-O-O {[%emt 0:02:52]} dxc3 {[%emt 0:01:02]} 21. Rxd8+ {[%emt 0:00:41]} Qxd8 {[%emt 0:10:27]} 22. f4 {[%emt 0:03:58]} cxb2+ {[%emt 0:12:26]} 23. Kb1 {[%emt 0:00:09]} Bf6 {[%emt 0:00:06]} 24. Nf5 {[%emt 0:14:29]} Kf8 {[%emt 0:17:23]} 25. Re1 {[%emt 0:11:09]} Nb4 {[%emt 0:08:13]} 26. Qc5+ {[%emt 0:02:36]} Kg8 {[%emt 0:00:01]} 27. Rd1 {[%emt 0:04:14]} Qf8 {[%emt 0:01:11]} 28. Qxa7 {[%emt 0:02:51]} Qe8 {[%emt 0:02:27]} 29. Qxb7 {[%emt 0:06:06]} Qa4 {[%emt 0:02:51]} 30. Qc8+ {[%emt 0:00:15]} Kh7 {[%emt 0:00:02]} 31. Qc4 {[%emt 0:00:02]} Qxa2+ {[%emt 0:01:01]} 32. Qxa2 {[%emt 0:00:03]} Nxa2 {[%emt 0:00:01]} 33. Kxa2 {[%emt 0:01:17]} Ra8+ {[%emt 0:04:33]} 34. Kb1 {[%emt 0:00:49]} Ra1+ {[%emt 0:00:10]} 35. Kc2 {[%emt 0:00:02]} b1=Q+ 36. Rxb1 Ra2+ {[%emt 0:01:25]} 37. Kd3 {[%emt 0:01:06]} Rxg2 {[%emt 0:00:27]} 38. Rh1 {[%emt 0:00:28]} Bg7 {[%emt 0:00:18]} 39. Bf3 {[%emt 0:01:11]} Ra2 {[%emt 0:00:25]} 40. Be4 {[%emt 0:00:37]} Kg8 {[%emt 0:01:57]} 41. Rc1 {[%emt 0:31:10]} Ra8 {[%emt 0:30:47]} 42. Bxa8 {[%emt 0:00:03]} 1-0